[Event "Early-Titled-Tuesday-Blitz-October-03-2023"]
[Site "Chess.com"]
[Date "2023.10.03"]
[Round "2"]
[White "Mihajlovskij"]
[Black "ArtemDyachuk"]
[Result "0-1"]
[WhiteElo "2293"]
[BlackElo "2687"]
[TimeControl "180+1"]
[EndTime "8:16:42 PDT"]
[Termination "ArtemDyachuk won on time"]

1. e4 {[%clk 0:03:00.9]} 1... c6 {[%clk 0:02:58.5]} 2. d4 {[%clk 0:02:59.3]}
2... d5 {[%clk 0:02:56.9]} 3. e5 {[%clk 0:02:59.8]} 3... Bf5 {[%clk 0:02:56.7]}
4. Be2 {[%clk 0:02:58.8]} 4... e6 {[%clk 0:02:56.6]} 5. Nf3 {[%clk 0:02:58.1]}
5... Nd7 {[%clk 0:02:52.4]} 6. O-O {[%clk 0:02:57.8]} 6... h6 {[%clk 0:02:52.8]}
7. Nc3 {[%clk 0:02:51.7]} 7... a6 {[%clk 0:02:50.5]} 8. Be3 {[%clk 0:02:48.9]}
8... Ne7 {[%clk 0:02:48.5]} 9. Qd2 {[%clk 0:02:47.8]} 9... Bh7 {[%clk 0:02:47]}
10. Ne1 {[%clk 0:02:45.7]} 10... Nf5 {[%clk 0:02:46.6]} 11. Bd3 {[%clk
0:02:43.5]} 11... c5 {[%clk 0:02:40.7]} 12. Bxf5 {[%clk 0:02:43.2]} 12... Bxf5
{[%clk 0:02:39.9]} 13. dxc5 {[%clk 0:02:40.7]} 13... Nxe5 {[%clk 0:02:37.1]} 14.
b3 {[%clk 0:02:29.6]} 14... Nc6 {[%clk 0:02:27.3]} 15. Nf3 {[%clk 0:02:22.9]}
15... Be7 {[%clk 0:02:27.2]} 16. Nd4 {[%clk 0:02:16.3]} 16... Bg6 {[%clk
0:02:23.2]} 17. Nxc6 {[%clk 0:02:15.1]} 17... bxc6 {[%clk 0:02:24.1]} 18. Na4
{[%clk 0:02:15]} 18... O-O {[%clk 0:02:21.3]} 19. Rad1 {[%clk 0:02:10.2]} 19...
e5 {[%clk 0:02:19.1]} 20. c3 {[%clk 0:02:09.5]} 20... Bh5 {[%clk 0:02:09.2]} 21.
Rde1 {[%clk 0:01:54]} 21... g5 {[%clk 0:01:52.3]} 22. f3 {[%clk 0:01:07.7]}
22... f5 {[%clk 0:01:50.8]} 23. Bf2 {[%clk 0:01:03.8]} 23... Bf6 {[%clk
0:01:48.7]} 24. Nb2 {[%clk 0:00:46.1]} 24... e4 {[%clk 0:01:38.7]} 25. fxe4
{[%clk 0:00:36.6]} 25... dxe4 {[%clk 0:01:39.6]} 26. Bd4 {[%clk 0:00:34.4]}
26... Bg6 {[%clk 0:01:32.3]} 27. Nc4 {[%clk 0:00:33.4]} 27... f4 {[%clk
0:01:25.7]} 28. Nd6 {[%clk 0:00:21.8]} 28... e3 {[%clk 0:01:23.2]} 29. Bxe3
{[%clk 0:00:14.6]} 29... fxe3 {[%clk 0:01:21.6]} 30. Qxe3 {[%clk 0:00:15.5]}
30... Bg7 {[%clk 0:01:18]} 31. Qe6+ {[%clk 0:00:14.7]} 31... Kh7 {[%clk
0:01:17.8]} 32. h4 {[%clk 0:00:07.4]} 32... gxh4 {[%clk 0:01:14.9]} 33. Rxf8
{[%clk 0:00:05.4]} 33... Qxf8 {[%clk 0:01:15.8]} 34. Rf1 {[%clk 0:00:05]} 34...
Qg8 {[%clk 0:01:14]} 35. Qg4 {[%clk 0:00:04.8]} 35... Rf8 {[%clk 0:01:10.1]} 36.
Re1 {[%clk 0:00:04.3]} 36... Rf6 {[%clk 0:01:02.2]} 37. Re7 {[%clk 0:00:01.8]}
37... Rf1+ {[%clk 0:01:02]} 38. Kxf1 {[%clk 0:00:01.7]} 38... Qf8+ {[%clk
0:01:02.4]} 39. Rf7 {[%clk 0:00:01.4]} 39... Bxf7 {[%clk 0:01:02.3]} 0-1

[Event "Early-Titled-Tuesday-Blitz-October-03-2023"]
[Site "Chess.com"]
[Date "2023.10.03"]
[Round "2"]
[White "MajorCoast"]
[Black "CrushingKings"]
[Result "0-1"]
[WhiteElo "2267"]
[BlackElo "2505"]
[TimeControl "180+1"]
[EndTime "8:16:47 PDT"]
[Termination "CrushingKings won by checkmate"]

1. a4 {[%clk 0:03:00.9]} 1... g6 {[%clk 0:03:00.9]} 2. c3 {[%clk 0:02:59.1]}
2... Bg7 {[%clk 0:03:01.8]} 3. h4 {[%clk 0:02:58.3]} 3... Nf6 {[%clk 0:03:00.4]}
4. d4 {[%clk 0:02:58.1]} 4... O-O {[%clk 0:02:58.4]} 5. Bg5 {[%clk 0:02:55.8]}
5... d6 {[%clk 0:02:50.2]} 6. e3 {[%clk 0:02:55.7]} 6... c5 {[%clk 0:02:46]} 7.
Nd2 {[%clk 0:02:55.1]} 7... Nc6 {[%clk 0:02:45.8]} 8. dxc5 {[%clk 0:02:42.3]}
8... dxc5 {[%clk 0:02:46]} 9. Bxf6 {[%clk 0:02:42.2]} 9... exf6 {[%clk 0:02:25]}
10. h5 {[%clk 0:02:38.5]} 10... Qe7 {[%clk 0:02:23.3]} 11. Bc4 {[%clk
0:02:21.2]} 11... Ne5 {[%clk 0:02:16.5]} 12. hxg6 {[%clk 0:02:16.2]} 12... hxg6
{[%clk 0:02:14.8]} 13. Ngf3 {[%clk 0:01:53.5]} 13... Nxc4 {[%clk 0:02:10.2]} 14.
Nxc4 {[%clk 0:01:54.4]} 14... Rd8 {[%clk 0:02:10]} 15. Qe2 {[%clk 0:01:50.3]}
15... Bf5 {[%clk 0:02:03.8]} 16. Rd1 {[%clk 0:01:28.8]} 16... Rxd1+ {[%clk
0:01:40.6]} 17. Qxd1 {[%clk 0:01:23.7]} 17... Rd8 {[%clk 0:01:40.9]} 18. Qb3
{[%clk 0:01:13.7]} 18... Bd3 {[%clk 0:01:35.4]} 19. Na5 {[%clk 0:01:03.3]} 19...
Rd7 {[%clk 0:01:26.1]} 20. c4 {[%clk 0:00:58]} 20... b6 {[%clk 0:01:06.8]} 21.
Nc6 {[%clk 0:00:49.5]} 21... Qe4 {[%clk 0:01:01]} 22. Nb8 {[%clk 0:00:37.4]}
22... Rd8 {[%clk 0:00:59.2]} 23. Rh4 {[%clk 0:00:37.3]} 23... Qb7 {[%clk
0:00:49.3]} 24. a5 {[%clk 0:00:03.2]} 24... Qxb8 {[%clk 0:00:48]} 25. axb6
{[%clk 0:00:02.8]} 25... Qxb6 {[%clk 0:00:44.6]} 26. Qa4 {[%clk 0:00:02.7]}
26... Qxb2 {[%clk 0:00:42.1]} 27. Nd2 {[%clk 0:00:01.3]} 27... Bc2 {[%clk
0:00:34.9]} 28. Qa5 {[%clk 0:00:01.4]} 28... Qc1+ {[%clk 0:00:34.3]} 29. Ke2
{[%clk 0:00:01.4]} 29... Qd1# {[%clk 0:00:33.5]} 0-1

[Event "Early-Titled-Tuesday-Blitz-October-03-2023"]
[Site "Chess.com"]
[Date "2023.10.03"]
[Round "2"]
[White "Susal_De_Silva"]
[Black "GiorgianBarbosa"]
[Result "1-0"]
[WhiteElo "2705"]
[BlackElo "2385"]
[TimeControl "180+1"]
[EndTime "8:16:49 PDT"]
[Termination "Susal_De_Silva won on time"]

1. d4 {[%clk 0:03:00.9]} 1... Nf6 {[%clk 0:02:26.1]} 2. c4 {[%clk 0:02:58.6]}
2... e6 {[%clk 0:02:27]} 3. g3 {[%clk 0:02:58.6]} 3... d5 {[%clk 0:02:27.9]} 4.
Bg2 {[%clk 0:02:58.6]} 4... Be7 {[%clk 0:02:27.7]} 5. Nf3 {[%clk 0:02:58.9]}
5... O-O {[%clk 0:02:27.9]} 6. O-O {[%clk 0:02:59.3]} 6... a5 {[%clk 0:02:28.3]}
7. Qc2 {[%clk 0:02:54]} 7... c6 {[%clk 0:02:28]} 8. Nbd2 {[%clk 0:02:52.8]} 8...
b6 {[%clk 0:02:25.2]} 9. Rd1 {[%clk 0:02:48.3]} 9... Ba6 {[%clk 0:02:20.4]} 10.
b3 {[%clk 0:02:46.2]} 10... b5 {[%clk 0:02:14.5]} 11. Ne5 {[%clk 0:02:35.8]}
11... Nfd7 {[%clk 0:02:04]} 12. Nd3 {[%clk 0:02:28.5]} 12... Bf6 {[%clk
0:01:52]} 13. Bb2 {[%clk 0:02:27.2]} 13... a4 {[%clk 0:01:39.3]} 14. e4 {[%clk
0:02:24.3]} 14... bxc4 {[%clk 0:01:11.2]} 15. bxc4 {[%clk 0:02:23]} 15... a3
{[%clk 0:00:57]} 16. Bxa3 {[%clk 0:02:18.5]} 16... dxc4 {[%clk 0:00:56.3]} 17.
Ne5 {[%clk 0:02:12.1]} 17... Nxe5 {[%clk 0:00:35.3]} 18. dxe5 {[%clk 0:02:11.3]}
18... Bxe5 {[%clk 0:00:28.5]} 19. Rab1 {[%clk 0:01:52.2]} 19... Bd4 {[%clk
0:00:21]} 20. Bxf8 {[%clk 0:01:51]} 20... Qxf8 {[%clk 0:00:21.9]} 21. Nxc4
{[%clk 0:01:50.5]} 21... e5 {[%clk 0:00:20.7]} 22. Bf1 {[%clk 0:01:41.3]} 22...
c5 {[%clk 0:00:17.7]} 23. Nb6 {[%clk 0:01:40.2]} 23... Ra7 {[%clk 0:00:17.2]}
24. Bxa6 {[%clk 0:01:40]} 24... Nxa6 {[%clk 0:00:17.4]} 25. a3 {[%clk
0:01:37.4]} 25... g6 {[%clk 0:00:17.1]} 26. Nd5 {[%clk 0:01:37.2]} 26... Kg7
{[%clk 0:00:16.7]} 27. Qc4 {[%clk 0:01:35.5]} 27... Nc7 {[%clk 0:00:15.8]} 28.
Nxc7 {[%clk 0:01:35.7]} 28... Rxc7 {[%clk 0:00:15.9]} 29. Rb6 {[%clk 0:01:36.3]}
29... Ra7 {[%clk 0:00:15.2]} 30. a4 {[%clk 0:01:36.8]} 30... Qa8 {[%clk
0:00:14.3]} 31. Rd3 {[%clk 0:01:31]} 31... Rxa4 {[%clk 0:00:10.6]} 32. Qd5
{[%clk 0:01:31.4]} 32... Qa5 {[%clk 0:00:10.7]} 33. Rf3 {[%clk 0:01:30.9]} 33...
Ra1+ {[%clk 0:00:07.5]} 34. Kg2 {[%clk 0:01:31.4]} 34... Qxb6 {[%clk 0:00:07.9]}
35. Qxf7+ {[%clk 0:01:31.6]} 35... Kh6 {[%clk 0:00:08.3]} 36. Qf8+ {[%clk
0:01:31.5]} 36... Kh5 {[%clk 0:00:05.3]} 37. g4+ {[%clk 0:01:28.7]} 37... Kxg4
{[%clk 0:00:03.9]} 38. Rg3+ {[%clk 0:01:25.5]} 38... Kh5 {[%clk 0:00:03.4]} 39.
Rh3+ {[%clk 0:01:23.2]} 39... Kg4 {[%clk 0:00:02.4]} 40. f3+ {[%clk 0:01:14.5]}
40... Kg5 {[%clk 0:00:01.2]} 41. Rg3+ {[%clk 0:01:13.6]} 1-0

[Event "Early-Titled-Tuesday-Blitz-October-03-2023"]
[Site "Chess.com"]
[Date "2023.10.03"]
[Round "2"]
[White "subham777"]
[Black "Mops_2004"]
[Result "0-1"]
[WhiteElo "2551"]
[BlackElo "2810"]
[TimeControl "180+1"]
[EndTime "8:16:54 PDT"]
[Termination "Mops_2004 won by resignation"]

1. e4 {[%clk 0:03:00.9]} 1... g6 {[%clk 0:03:00.1]} 2. d4 {[%clk 0:03:00.5]}
2... Bg7 {[%clk 0:03:00.6]} 3. c4 {[%clk 0:03:01]} 3... d6 {[%clk 0:03:00.9]} 4.
Nc3 {[%clk 0:02:59.5]} 4... e5 {[%clk 0:03:01.4]} 5. Nf3 {[%clk 0:02:58.9]} 5...
Bg4 {[%clk 0:03:00.8]} 6. Be3 {[%clk 0:02:52.7]} 6... Bxf3 {[%clk 0:02:52.4]} 7.
gxf3 {[%clk 0:02:51.2]} 7... Nc6 {[%clk 0:02:43.6]} 8. d5 {[%clk 0:02:49.6]}
8... Nd4 {[%clk 0:02:43.8]} 9. Be2 {[%clk 0:02:40.2]} 9... Nf6 {[%clk
0:02:43.4]} 10. Qd2 {[%clk 0:02:39.7]} 10... Nh5 {[%clk 0:02:42.6]} 11. O-O-O
{[%clk 0:02:30.2]} 11... c5 {[%clk 0:02:42.6]} 12. dxc6 {[%clk 0:02:02.3]} 12...
bxc6 {[%clk 0:02:43.5]} 13. f4 {[%clk 0:02:02.8]} 13... Nxf4 {[%clk 0:02:38.5]}
14. Bxd4 {[%clk 0:01:31.3]} 14... exd4 {[%clk 0:02:37.2]} 15. Qxf4 {[%clk
0:01:30.7]} 15... Be5 {[%clk 0:02:22.6]} 16. Qd2 {[%clk 0:01:00.2]} 16... dxc3
{[%clk 0:02:21.7]} 17. bxc3 {[%clk 0:01:01.1]} 17... Qa5 {[%clk 0:02:20.4]} 18.
f4 {[%clk 0:00:59.1]} 18... Bxc3 {[%clk 0:02:13.7]} 19. Qxd6 {[%clk 0:00:46.7]}
19... Qxa2 {[%clk 0:01:30.8]} 20. Qxc6+ {[%clk 0:00:27.6]} 20... Kf8 {[%clk
0:01:30.2]} 21. Qxa8+ {[%clk 0:00:28.1]} 21... Kg7 {[%clk 0:01:30.4]} 22. Qb7
{[%clk 0:00:28.8]} 22... Qxe2 {[%clk 0:01:24.7]} 23. Qb3 {[%clk 0:00:26.1]}
23... Ba1 {[%clk 0:00:45.6]} 24. Rhe1 {[%clk 0:00:18.3]} 24... Qf2 {[%clk
0:00:45.7]} 25. Rf1 {[%clk 0:00:12.6]} 25... Qe2 {[%clk 0:00:37.2]} 26. Qc2
{[%clk 0:00:08.7]} 26... Qe3+ {[%clk 0:00:33.1]} 27. Qd2 {[%clk 0:00:01.6]}
27... Qa3+ {[%clk 0:00:32.7]} 28. Kc2 {[%clk 0:00:02.3]} 28... Rb8 {[%clk
0:00:28.3]} 29. Rxa1 {[%clk 0:00:01.9]} 29... Rb2+ {[%clk 0:00:28.3]} 30. Kd1
{[%clk 0:00:01.7]} 30... Qxa1+ {[%clk 0:00:27.7]} 31. Ke2 {[%clk 0:00:02.2]}
31... Rxd2+ {[%clk 0:00:27.7]} 0-1

[Event "Early-Titled-Tuesday-Blitz-October-03-2023"]
[Site "Chess.com"]
[Date "2023.10.03"]
[Round "2"]
[White "CheckThis4"]
[Black "RianKapriaga"]
[Result "1-0"]
[WhiteElo "2696"]
[BlackElo "2348"]
[TimeControl "180+1"]
[EndTime "8:16:55 PDT"]
[Termination "CheckThis4 won on time"]

1. e4 {[%clk 0:03:00.9]} 1... c6 {[%clk 0:02:59.1]} 2. Nf3 {[%clk 0:02:57.3]}
2... d5 {[%clk 0:02:58.5]} 3. Nc3 {[%clk 0:02:57.2]} 3... Bg4 {[%clk 0:02:56.3]}
4. h3 {[%clk 0:02:56.7]} 4... Bxf3 {[%clk 0:02:56]} 5. Qxf3 {[%clk 0:02:57.6]}
5... Nf6 {[%clk 0:02:55.5]} 6. d3 {[%clk 0:02:53.1]} 6... e6 {[%clk 0:02:52.7]}
7. Be2 {[%clk 0:02:50.9]} 7... Bb4 {[%clk 0:02:51.1]} 8. O-O {[%clk 0:02:48.4]}
8... Nbd7 {[%clk 0:02:47.8]} 9. Qg3 {[%clk 0:02:43.9]} 9... Bf8 {[%clk
0:02:18.3]} 10. e5 {[%clk 0:02:39.8]} 10... Ng8 {[%clk 0:02:11.3]} 11. d4 {[%clk
0:02:34.1]} 11... Ne7 {[%clk 0:02:08.8]} 12. Bd3 {[%clk 0:02:33.3]} 12... Ng6
{[%clk 0:02:07]} 13. Ne2 {[%clk 0:02:31]} 13... Qh4 {[%clk 0:01:43.9]} 14. Bxg6
{[%clk 0:02:24.7]} 14... hxg6 {[%clk 0:01:43.3]} 15. Qb3 {[%clk 0:02:15]} 15...
O-O-O {[%clk 0:01:34.7]} 16. Bf4 {[%clk 0:02:10.7]} 16... g5 {[%clk 0:01:31.7]}
17. Bg3 {[%clk 0:02:10.6]} 17... Qh5 {[%clk 0:01:30]} 18. f3 {[%clk 0:02:07.5]}
18... Be7 {[%clk 0:01:11.6]} 19. a4 {[%clk 0:02:00.5]} 19... Nf8 {[%clk
0:01:09.8]} 20. a5 {[%clk 0:01:58.9]} 20... a6 {[%clk 0:01:04.4]} 21. c4 {[%clk
0:01:58.2]} 21... Ng6 {[%clk 0:01:01.6]} 22. c5 {[%clk 0:01:42.8]} 22... Nh4
{[%clk 0:00:58.7]} 23. Ra3 {[%clk 0:01:21]} 23... Rd7 {[%clk 0:00:57.3]} 24. Qb6
{[%clk 0:01:19.4]} 24... Bd8 {[%clk 0:00:55.3]} 25. Qa7 {[%clk 0:01:13.3]} 25...
Bc7 {[%clk 0:00:50.7]} 26. Rb3 {[%clk 0:01:12.2]} 26... Bb8 {[%clk 0:00:50.3]}
27. Qb6 {[%clk 0:01:10.7]} 27... Nf5 {[%clk 0:00:36.3]} 28. Bh2 {[%clk
0:01:06.4]} 28... f6 {[%clk 0:00:30]} 29. exf6 {[%clk 0:00:59.8]} 29... Bxh2+
{[%clk 0:00:27.5]} 30. Kxh2 {[%clk 0:01:00.7]} 30... gxf6 {[%clk 0:00:27.2]} 31.
Qa7 {[%clk 0:01:00.2]} 31... Kd8 {[%clk 0:00:07.6]} 32. Rxb7 {[%clk 0:00:51.1]}
32... Rxb7 {[%clk 0:00:06.8]} 33. Qxb7 {[%clk 0:00:52]} 33... g4 {[%clk
0:00:07.1]} 34. fxg4 {[%clk 0:00:47.6]} 34... Qh6 {[%clk 0:00:01.8]} 35. gxf5
{[%clk 0:00:44.5]} 1-0

[Event "Early-Titled-Tuesday-Blitz-October-03-2023"]
[Site "Chess.com"]
[Date "2023.10.03"]
[Round "2"]
[White "maracayo"]
[Black "Alexandr_Predke"]
[Result "0-1"]
[WhiteElo "2394"]
[BlackElo "2851"]
[TimeControl "180+1"]
[EndTime "8:16:57 PDT"]
[Termination "Alexandr_Predke won by resignation"]

1. e4 {[%clk 0:03:00.9]} 1... c6 {[%clk 0:02:58.3]} 2. Nf3 {[%clk 0:03:00.1]}
2... d5 {[%clk 0:02:59.2]} 3. d3 {[%clk 0:02:59.9]} 3... dxe4 {[%clk 0:02:57.4]}
4. dxe4 {[%clk 0:03:00.8]} 4... Qxd1+ {[%clk 0:02:57.3]} 5. Kxd1 {[%clk
0:03:01.7]} 5... g6 {[%clk 0:02:54.8]} 6. Bd3 {[%clk 0:03:01.1]} 6... Bg4 {[%clk
0:02:52.2]} 7. Ke2 {[%clk 0:03:00.9]} 7... Nd7 {[%clk 0:02:52.2]} 8. Be3 {[%clk
0:02:59.2]} 8... Bh6 {[%clk 0:02:45.7]} 9. Nd2 {[%clk 0:02:42.3]} 9... O-O-O
{[%clk 0:02:44.1]} 10. h3 {[%clk 0:02:38.6]} 10... Bxf3+ {[%clk 0:02:43]} 11.
gxf3 {[%clk 0:02:26.8]} 11... Bg7 {[%clk 0:02:41]} 12. Nc4 {[%clk 0:02:19.8]}
12... b6 {[%clk 0:02:32.4]} 13. a4 {[%clk 0:02:17.2]} 13... Ngf6 {[%clk
0:02:27]} 14. f4 {[%clk 0:02:02.6]} 14... Nh5 {[%clk 0:02:26.6]} 15. c3 {[%clk
0:01:44]} 15... Kc7 {[%clk 0:02:25.4]} 16. f5 {[%clk 0:01:19.5]} 16... Ne5
{[%clk 0:02:21.1]} 17. Nxe5 {[%clk 0:01:18.7]} 17... Bxe5 {[%clk 0:02:22]} 18.
a5 {[%clk 0:01:17.8]} 18... b5 {[%clk 0:02:14.5]} 19. Bc2 {[%clk 0:01:11.7]}
19... Kb8 {[%clk 0:01:45.1]} 20. Kf3 {[%clk 0:01:10.1]} 20... gxf5 {[%clk
0:01:35.4]} 21. exf5 {[%clk 0:01:09.6]} 21... Nf6 {[%clk 0:01:35.9]} 22. Rad1
{[%clk 0:00:42.8]} 22... Nd5 {[%clk 0:01:33.7]} 23. Bd4 {[%clk 0:00:38.4]} 23...
Bxd4 {[%clk 0:01:30.3]} 24. Rxd4 {[%clk 0:00:39.3]} 24... Nf6 {[%clk 0:01:29.8]}
25. Rhd1 {[%clk 0:00:38.4]} 25... Rxd4 {[%clk 0:01:30.2]} 26. Rxd4 {[%clk
0:00:39.1]} 26... Kc7 {[%clk 0:01:31]} 27. Bb3 {[%clk 0:00:37.7]} 27... c5
{[%clk 0:01:30.9]} 28. Rd1 {[%clk 0:00:30.9]} 28... c4 {[%clk 0:01:31.4]} 29.
Bc2 {[%clk 0:00:31.5]} 29... Rb8 {[%clk 0:01:14.4]} 30. Re1 {[%clk 0:00:26.8]}
30... Kd6 {[%clk 0:01:11]} 31. Rd1+ {[%clk 0:00:26.1]} 31... Nd5 {[%clk
0:01:11.5]} 32. Be4 {[%clk 0:00:24.6]} 32... e6 {[%clk 0:01:11.8]} 33. fxe6
{[%clk 0:00:23.5]} 33... fxe6 {[%clk 0:01:12.7]} 34. Bxd5 {[%clk 0:00:22.6]}
34... exd5 {[%clk 0:01:12.1]} 35. Rg1 {[%clk 0:00:20.4]} 35... b4 {[%clk
0:01:10.5]} 36. Rg7 {[%clk 0:00:19.6]} 36... bxc3 {[%clk 0:01:09.3]} 37. bxc3
{[%clk 0:00:20.5]} 37... Rb3 {[%clk 0:01:09.4]} 38. Rxa7 {[%clk 0:00:20.8]}
38... Rxc3+ {[%clk 0:01:09.7]} 39. Ke2 {[%clk 0:00:21.7]} 39... d4 {[%clk
0:01:08.3]} 40. Rxh7 {[%clk 0:00:19.9]} 40... Rc2+ {[%clk 0:01:08.8]} 41. Kd1
{[%clk 0:00:19.9]} 41... Ra2 {[%clk 0:01:07.6]} 42. a6 {[%clk 0:00:20.8]} 42...
d3 {[%clk 0:01:05.8]} 43. a7 {[%clk 0:00:20.7]} 43... c3 {[%clk 0:01:03.6]} 44.
Rh6+ {[%clk 0:00:13.8]} 44... Ke5 {[%clk 0:01:00.4]} 45. Rh5+ {[%clk 0:00:14.7]}
45... Kf6 {[%clk 0:00:59.5]} 46. Rh6+ {[%clk 0:00:15.6]} 46... Kg5 {[%clk
0:00:58.5]} 47. Ra6 {[%clk 0:00:13.6]} 47... Rxa6 {[%clk 0:00:57.2]} 0-1

[Event "Early-Titled-Tuesday-Blitz-October-03-2023"]
[Site "Chess.com"]
[Date "2023.10.03"]
[Round "2"]
[White "LionTheLeon_06"]
[Black "MathiasWomacka"]
[Result "0-1"]
[WhiteElo "2803"]
[BlackElo "2579"]
[TimeControl "180+1"]
[EndTime "8:17:08 PDT"]
[Termination "MathiasWomacka won on time"]

1. e4 {[%clk 0:03:00.9]} 1... c5 {[%clk 0:02:58.8]} 2. Nf3 {[%clk 0:03:01.2]}
2... d6 {[%clk 0:02:56.3]} 3. Bb5+ {[%clk 0:03:01.1]} 3... Nd7 {[%clk
0:02:55.3]} 4. a4 {[%clk 0:02:58.4]} 4... Nf6 {[%clk 0:02:53.4]} 5. Nc3 {[%clk
0:02:58.7]} 5... e6 {[%clk 0:02:46]} 6. O-O {[%clk 0:02:57.7]} 6... Be7 {[%clk
0:02:46]} 7. Re1 {[%clk 0:02:57.7]} 7... O-O {[%clk 0:02:45.7]} 8. a5 {[%clk
0:02:58.1]} 8... a6 {[%clk 0:02:44.1]} 9. Bf1 {[%clk 0:02:58.1]} 9... Qc7 {[%clk
0:02:32.2]} 10. d4 {[%clk 0:02:34.7]} 10... cxd4 {[%clk 0:02:33.1]} 11. Nxd4
{[%clk 0:02:35.1]} 11... Ne5 {[%clk 0:02:30]} 12. h3 {[%clk 0:02:28.2]} 12...
Bd7 {[%clk 0:02:26.1]} 13. Nb3 {[%clk 0:02:27.7]} 13... Rac8 {[%clk 0:02:12.9]}
14. Bf4 {[%clk 0:02:10.2]} 14... Rfd8 {[%clk 0:02:08.5]} 15. Be3 {[%clk
0:01:38.9]} 15... Nc4 {[%clk 0:02:06.9]} 16. Bxc4 {[%clk 0:01:38.1]} 16... Qxc4
{[%clk 0:02:06.5]} 17. Bb6 {[%clk 0:01:38.1]} 17... Re8 {[%clk 0:02:01.9]} 18.
Qd2 {[%clk 0:01:31.7]} 18... e5 {[%clk 0:01:51.1]} 19. Nc1 {[%clk 0:00:42.1]}
19... Be6 {[%clk 0:01:46.7]} 20. Nd3 {[%clk 0:00:41.8]} 20... Bd8 {[%clk
0:01:36.1]} 21. Ra4 {[%clk 0:00:36.6]} 21... Qc6 {[%clk 0:01:33.7]} 22. Nb4
{[%clk 0:00:36.1]} 22... Qd7 {[%clk 0:01:32.7]} 23. Bxd8 {[%clk 0:00:17.7]}
23... Rexd8 {[%clk 0:01:33.6]} 24. Rd1 {[%clk 0:00:11.6]} 24... Rxc3 {[%clk
0:01:31.8]} 25. Qxc3 {[%clk 0:00:08.1]} 25... Qxa4 {[%clk 0:01:31.5]} 26. f3
{[%clk 0:00:04.9]} 26... Qxa5 {[%clk 0:01:28.4]} 27. Kh2 {[%clk 0:00:04.8]}
27... Rc8 {[%clk 0:01:23.9]} 28. Qd2 {[%clk 0:00:05.2]} 28... Qc5 {[%clk
0:01:17.1]} 29. c3 {[%clk 0:00:04]} 29... Rd8 {[%clk 0:01:13.2]} 30. Nd3 {[%clk
0:00:04]} 30... Qc7 {[%clk 0:01:12.4]} 31. Nxe5 {[%clk 0:00:02.3]} 31... d5
{[%clk 0:01:05.4]} 32. Qd4 {[%clk 0:00:02.3]} 32... Nd7 {[%clk 0:01:03.7]} 33.
f4 {[%clk 0:00:02.7]} 33... Nxe5 {[%clk 0:01:03.3]} 34. fxe5 {[%clk 0:00:03.6]}
34... Rd7 {[%clk 0:01:02.8]} 35. Kh1 {[%clk 0:00:01.1]} 35... dxe4 {[%clk
0:01:01.5]} 36. Qg1 {[%clk 0:00:02]} 36... Qxe5 {[%clk 0:00:58.5]} 37. Rxd7
{[%clk 0:00:02.2]} 37... Bxd7 {[%clk 0:00:58.9]} 38. Qb6 {[%clk 0:00:02.1]}
38... g6 {[%clk 0:00:57.1]} 39. Qe3 {[%clk 0:00:01.1]} 39... Bc6 {[%clk
0:00:56.2]} 40. Kg1 {[%clk 0:00:01.6]} 40... Qd5 {[%clk 0:00:55.9]} 41. Kf2
{[%clk 0:00:01.9]} 41... Qd3 {[%clk 0:00:55.2]} 42. Qf4 {[%clk 0:00:01.5]} 42...
Qc2+ {[%clk 0:00:55]} 43. Kg3 {[%clk 0:00:01.6]} 43... Qd3+ {[%clk 0:00:52.1]}
44. Kf2 {[%clk 0:00:01.1]} 44... e3+ {[%clk 0:00:52]} 0-1

[Event "Early-Titled-Tuesday-Blitz-October-03-2023"]
[Site "Chess.com"]
[Date "2023.10.03"]
[Round "2"]
[White "Orujov2008"]
[Black "Kgutierrez95"]
[Result "1-0"]
[WhiteElo "2660"]
[BlackElo "2144"]
[TimeControl "180+1"]
[EndTime "8:17:09 PDT"]
[Termination "Orujov2008 won on time"]

1. e4 {[%clk 0:02:59.1]} 1... c6 {[%clk 0:02:58.9]} 2. d4 {[%clk 0:02:58.8]}
2... d5 {[%clk 0:02:59]} 3. Nc3 {[%clk 0:02:57.3]} 3... dxe4 {[%clk 0:02:58.3]}
4. Nxe4 {[%clk 0:02:58]} 4... Bf5 {[%clk 0:02:57.7]} 5. Ng3 {[%clk 0:02:57.5]}
5... Bg6 {[%clk 0:02:57.8]} 6. Nf3 {[%clk 0:02:57.1]} 6... Nd7 {[%clk
0:02:55.8]} 7. h4 {[%clk 0:02:56.6]} 7... h6 {[%clk 0:02:55.2]} 8. h5 {[%clk
0:02:57.1]} 8... Bh7 {[%clk 0:02:55.5]} 9. Bd3 {[%clk 0:02:57.7]} 9... Bxd3
{[%clk 0:02:55]} 10. Qxd3 {[%clk 0:02:58.6]} 10... e6 {[%clk 0:02:54.1]} 11. Bd2
{[%clk 0:02:59.1]} 11... Ngf6 {[%clk 0:02:52.9]} 12. O-O-O {[%clk 0:02:59.3]}
12... Be7 {[%clk 0:02:43.6]} 13. Ne4 {[%clk 0:02:59.4]} 13... Nxe4 {[%clk
0:02:41]} 14. Qxe4 {[%clk 0:03:00.3]} 14... Nf6 {[%clk 0:02:40.7]} 15. Qe2
{[%clk 0:03:00.9]} 15... Qd5 {[%clk 0:02:40.1]} 16. c4 {[%clk 0:03:01.6]} 16...
Qe4 {[%clk 0:02:40]} 17. Qxe4 {[%clk 0:03:02.2]} 17... Nxe4 {[%clk 0:02:40.7]}
18. Be1 {[%clk 0:03:02.9]} 18... O-O {[%clk 0:02:32.1]} 19. Ne5 {[%clk
0:02:56.4]} 19... Bg5+ {[%clk 0:02:19.1]} 20. Kc2 {[%clk 0:02:55.3]} 20... Rad8
{[%clk 0:01:53.2]} 21. f3 {[%clk 0:02:44.6]} 21... Nd6 {[%clk 0:01:50.1]} 22.
Bf2 {[%clk 0:02:43.3]} 22... f6 {[%clk 0:01:45.2]} 23. Ng6 {[%clk 0:02:39.8]}
23... f5 {[%clk 0:01:10.4]} 24. Nxf8 {[%clk 0:02:38]} 24... Kxf8 {[%clk
0:01:09.6]} 25. b3 {[%clk 0:02:35.7]} 25... Bf6 {[%clk 0:01:05.7]} 26. Rhe1
{[%clk 0:02:30.1]} 26... Kf7 {[%clk 0:01:03.6]} 27. Kb1 {[%clk 0:02:23.4]} 27...
Ne8 {[%clk 0:01:01.8]} 28. Kc2 {[%clk 0:02:17]} 28... Nc7 {[%clk 0:01:01.2]} 29.
Kc3 {[%clk 0:02:02.2]} 29... b6 {[%clk 0:00:58.8]} 30. Bg3 {[%clk 0:02:01.4]}
30... Na6 {[%clk 0:00:52.9]} 31. Be5 {[%clk 0:02:00.8]} 31... Be7 {[%clk
0:00:50.4]} 32. Kb2 {[%clk 0:01:56.4]} 32... Bb4 {[%clk 0:00:43.7]} 33. Re2
{[%clk 0:01:56.3]} 33... b5 {[%clk 0:00:28]} 34. a3 {[%clk 0:01:50.2]} 34... Be7
{[%clk 0:00:21.4]} 35. c5 {[%clk 0:01:48.7]} 35... Nxc5 {[%clk 0:00:19.6]} 36.
Rc2 {[%clk 0:01:34.6]} 36... Rd5 {[%clk 0:00:18.4]} 37. Rdd2 {[%clk 0:01:28.2]}
37... Nd7 {[%clk 0:00:17.6]} 38. f4 {[%clk 0:01:09.8]} 38... Nxe5 {[%clk
0:00:12.3]} 39. fxe5 {[%clk 0:01:10.7]} 39... c5 {[%clk 0:00:12.4]} 40. dxc5
{[%clk 0:01:10.6]} 40... Rxc5 {[%clk 0:00:01.9]} 41. Rxc5 {[%clk 0:01:10.4]}
41... Bxc5 {[%clk 0:00:02.7]} 42. Rd7+ {[%clk 0:01:08.9]} 42... Kf8 {[%clk
0:00:03.2]} 43. b4 {[%clk 0:01:06.8]} 43... Be3 {[%clk 0:00:02]} 44. Kc3 {[%clk
0:01:04]} 1-0